Cogmind - Beta 9.1 @@@ ROGUE MODE // 2019.10.31 @ 15:50:24 // Halloween2019/Abominations Player: SHADOWELITE7 Result: Destroyed by Lesser Abomination with Assault Rifle Performance ------------- Evolutions (0) 0 Regions Visited (1) 200 Robots Destroyed (12) 60 Value Destroyed (531) 531 Prototype IDs (0) 0 Alien Tech Used (0) 0 Bonus (0) 0 TOTAL SCORE: 791 Bonus ------- None Cogmind --------- Core Integrity 0/250 Matter 257/300 Energy 100/100 System Corruption 0% Temperature Cool (0) Location -10/Materials Parts ------- Power (1) Propulsion (2) Utility (2) Medium Storage Unit Visual Processing Unit Weapon (2) Light Assault Rifle Inventory (8) Ion Engine Medium Storage Unit Peak State ------------ Power Ion Engine Propulsion Light Treads Light Treads Utility Medium Storage Unit Visual Processing Unit Weapon Small Laser Assault Rifle Inventory Ion Engine Medium Storage Unit Light Assault Rifle Light Cannon [Rating: 8] Favorites ----------- Power Ion Engine Engine Ion Engine Propulsion Light Treads Treads Light Treads Utility Medium Storage Unit Storage Medium Storage Unit Processor Visual Processing Unit Weapon Light Cannon Energy Gun Small Laser Ballistic Gun Assault Rifle Ballistic Cannon Light Cannon Build | -11 -10 ------- Run | Scr Mat Slots Evolved . | . . Power . | . . Propulsion . | . . Utility . | . . Weapon . | . . Parts Attached 12 | 6 6 Power 1 | 1 . Engine 1 | 1 . Core . | . . Reactor . | . . Propulsion 2 | 2 . Treads 2 | 2 . Leg . | . . Wheel . | . . Hover . | . . Flight . | . . Utility 5 | 1 4 Device . | . . Storage 4 | 1 3 Processor 1 | . 1 Hackware . | . . Protection . | . . Artifact . | . . Weapon 4 | 2 2 Energy Gun 1 | 1 . Energy Cannon . | . . Ballistic Gun 2 | 1 1 Ballistic Cannon 1 | . 1 Launcher . | . . Special Weapon . | . . Impact Weapon . | . . Slashing Weapon . | . . Piercing Weapon . | . . Special Melee Weapon . | . . Unidentified Prototypes . | . . Parts Lost 6 | . 6 Power 1 | . 1 Propulsion 2 | . 2 Utility . | . . Weapon 3 | . 3 Highest Loss Streak 5 | . 5 Average Slot Usage (%) 57 | . 57 Engine 4 | . 4 Treads 7 | . 7 Storage 14 | . 14 Processor 12 | . 12 Energy Gun 3 | . 3 Ballistic Gun 5 | . 5 Ballistic Cannon 9 | . 9 Naked Turns . | . . Heaviest Build 24 | 12 24 Greatest Support 40 | 40 40 Greatest Overweight (x) 3 | . 3 Average Overweight (x) 1 | . 2 Largest Inventory Capacity 12 | 6 12 Average Capacity 7 | 5 7 Most Carried 5 | 5 5 Average Carried 2 | 1 2 Final Capacity 8 | 6 8 Final Carried 2 | 2 2 Class Distribution -------------------- 100% | Mutant Dominant Class ---------------- Mutant | -10/Materials Resources | -11 -10 ----------- Run | Scr Mat Matter Collected 474 | 208 266 Remotely . | . . Salvage Created 426 | . 426 Parts 28 | . 28 Haulers Intercepted . | . . Recyclers Shooed . | . . Parts Field Recycled . | . . Retrieved Matter . | . . Parts Self-Destructed . | . . Prevented . | . . Kills | -11 -10 ------- Run | Scr Mat Combat Hostiles Destroyed 12 | . 12 Guns 5 | . 5 Cannons 7 | . 7 Classes Destroyed 3 | . 3 Swarmer 1 | . 1 Grunt 7 | . 7 Abomination 4 | . 4 Best Kill Streak 4 | . 4 Combat Bots Only 4 | . 4 Max Kills in Single Turn 1 | . 1 Gunslinging . | . . Exploded . | . . Melee . | . . Uniques/NPCs Destroyed . | . . Combat | -11 -10 -------- Run | Scr Mat Damage Taken 970 | . 970 Core 262 | . 262 Absorbed by Shields . | . . Core Remaining (%) 100 | 100 . Volleys Fired 60 | . 60 Largest 2 | . 2 Hottest 60 | . 60 Shots Fired 84 | . 84 Gun 55 | . 55 Cannon 29 | . 29 Launcher . | . . Special . | . . Kinetic 74 | . 74 Thermal 10 | . 10 Explosive . | . . Electromagnetic . | . . Robot Hit Streak 9 | . 9 Robot Miss Streak 4 | . 4 Penetration Max . | . . Secondary Targets . | . . Shots Hit Robots 54 | . 54 Core Hits 23 | . 23 Critical Hits . | . . Critical Kills . | . . Critical Parts Destroyed . | . . Melee Attacks . | . . Impact . | . . Slashing . | . . Piercing . | . . Sneak Attacks . | . . Combat Hostiles . | . . Follow-up Attacks . | . . Damage Inflicted 808 | . 808 Guns 452 | . 452 Cannons 356 | . 356 Explosions . | . . Melee . | . . Ramming . | . . Kinetic 698 | . 698 Thermal 110 | . 110 Explosive . | . . Electromagnetic . | . . Impact . | . . Slashing . | . . Piercing . | . . Highest Corruption . | . . Average Corruption . | . . Corruption Purged . | . . Overload Shots . | . . Overflow Damage 3 | . 3 Projectiles 3 | . 3 Explosions . | . . Melee . | . . Knockbacks 6 | . 6 Impact . | . . Kinetic 6 | . 6 Secondary . | . . Self-Inflicted Damage . | . . Shots . | . . Rammed . | . . Targets Rammed . | . . Kicked . | . . Crushed . | . . Highest Temperature 99 | . 99 Average Temperature 50 | . 50 Received Heat Transfer 471 | . 471 Siege Activations . | . . Robots Corrupted . | . . Combat Hostiles . | . . Parts Fried . | . . Impact Corruptions . | . . Robots Melted . | . . Combat Hostiles . | . . Parts Melted . | . . Heat Transferred 86 | . 86 Parts Sabotaged . | . . Parts Stolen . | . . Parts Stripped . | . . Power Chain Reactions . | . . Missiles Intercepted . | . . Alert | -11 -10 ------- Run | Scr Mat Peak Influence 115 | . 115 Average Influence 32 | . 37 Maximum Alert Level . | . . Low Security (%) 100 | . . Level 1 . | . . Level 2 . | . . Level 3 . | . . Level 4 . | . . Level 5 . | . . High Security . | . . Max Security . | . . Squads Dispatched 4 | . 4 Investigation 2 | . 2 Extermination . | . . Reinforcement 2 | . 2 Assault . | . . Garrison . | . . Intercept . | . . Construction Impeded . | . . Haulers Reinforced . | . . Stealth | -11 -10 --------- Run | Scr Mat Distress Signals 1 | . 1 Communications Jammed . | . . Distress Signals . | . . Times Spotted 17 | . 17 Peak Tracking Total 5 | . 5 Tactical Retreats . | . . Traps | -11 -10 ------- Run | Scr Mat Traps Triggered . | . . Indirectly . | . . Trap Hack Attempts . | . . Triggered . | . . Disarmed . | . . Reprogrammed . | . . Reused . | . . Traps Extracted . | . . Installed . | . . Triggered . | . . Machines | -11 -10 ---------- Run | Scr Mat Machines Disabled 1 | . 1 Max in Single Turn 1 | . 1 Machines Sabotaged . | . . Garrisons Compromised . | . . Overloaded Fab Kills . | . . Fab Network Shutdowns . | . . Hacking | -11 -10 --------- Run | Scr Mat Machines Accessed . | . . Terminals . | . . Fabricators . | . . Repair Stations . | . . Recycling Units . | . . Scanalyzers . | . . Garrison Access . | . . Total Hacks . | . . Successful . | . . Failed . | . . Catastrophic . | . . Database Lockouts . | . . Manual . | . . Terminals . | . . Fabricators . | . . Repair Stations . | . . Recycling Units . | . . Scanalyzers . | . . Garrison Access . | . . Terminal Hacks . | . . Fabricator Hacks . | . . Repair Station Hacks . | . . Recycling Unit Hacks . | . . Scanalyzer . | . . Garrison Access Hacks . | . . Unauthorized Hacks . | . . Terminals . | . . Fabricators . | . . Repair Stations . | . . Recycling Units . | . . Scanalyzers . | . . Garrison Access . | . . Data Cores Recovered . | . . Used . | . . Hacking Detections . | . . Full Trace Events . | . . Feedback Events . | . . Feedback Blocked . | . . Robot Schematics Acquired . | . . Robots Built . | . . Matter . | . . Time . | . . Total Robot Build Rating . | . . Part Schematics Acquired . | . . Parts Built . | . . Matter . | . . Time . | . . Total Part Build Rating . | . . Parts Repaired . | . . Time . | . . Parts Recycled . | . . Recycled Matter . | . . Retrieved Matter . | . . Retrieved Components . | . . Parts Scanalyzed . | . . Part Schematics Acquired . | . . Parts Damaged . | . . Bothacking | -11 -10 ------------ Run | Scr Mat Used RIF Installer . | . . Robots Hacked . | . . Non-combat . | . . Combat . | . . Robot Hacks Applied . | . . Relay Couplers Released . | . . Robots Rewired . | . . Allies Hacked . | . . Hacks Repelled . | . . Allies | -11 -10 -------- Run | Scr Mat Total Allies . | . . Largest Group . | . . Highest-Rated Group . | . . Highest-Rated Ally . | . . Total Orders . | . . Ally Attacks . | . . Total Damage . | . . Kills . | . . Allies Corrupted . | . . Allies Melted . | . . Intel | -11 -10 ------- Run | Scr Mat Robot Analysis Total . | . . Derelict Logs Recovered . | . . Drone Launches . | . . Drone Recoveries . | . . Exploration | -11 -10 ------------- Run | Scr Mat Turns Passed 666 | 92 574 Spaces Moved 273 | 54 219 Core 165 | 7 158 Treads 108 | 47 61 Legs . | . . Wheels . | . . Hover . | . . Flight . | . . Fastest Speed 50 | 50 150 Average Speed 179 | 145 188 Slowest Speed 200 | 160 200 Overloaded Moves . | . . Propulsion Burnouts . | . . Robots Hopped . | . . Cave-ins Triggered . | . . Exploration Rate (%) 21 | 4 39 Regions Visited 1 Branch Regions . Pre-discovered Areas . | . . Known Exits Taken . | . . Unknown Exits Taken 1 | 1 . Scrap Searched . | . . Spaces Dug . | . . Terrain Destroyed . | . . Melee . | . . Projectile . | . . AOE . | . . Actions | -11 -10 --------- Run | Scr Mat Total 354 | 67 287 Wait . | . . Move 268 | 53 215 Hop . | . . Pick Up 12 | 8 4 Fast Attach . | . . Attach 11 | 6 5 Detach 1 | . 1 Swap 1 | . 1 Drop 1 | . 1 Fire 60 | . 60 Melee . | . . Ram . | . . Kick . | . . Crush . | . . Escape Stasis . | . . Rewire . | . . Trap . | . . Miscellaneous . | . . Route ------- -11/Scrapyard -10/Materials History --------- Turn | Location | Event 4 | -11/Scrapyard | Discovered new exit (range 15) 93 | -11/Scrapyard | Entered Materials 306 | -10/Materials | Build established: Mutant 318 | -10/Materials | Lost 5 parts (1p2n2w) 400 | -10/Materials | Discovered new exit (range 9) 441 | -10/Materials | Core integrity fell below 50% 648 | -10/Materials | Core integrity fell below 20% 667 | -10/Materials | Destroyed by Lesser Abomination with Assault Rifle Last Messages --------------- 00653_ Lesser Abomination sneak attacks. 00655_ Lesser Abomination absorbs Terrain Scanner. 00655_ U-05 Engineer lays Concrete. 00656_ Lesser Abomination absorbs Terrain Scan Processor. 00656_ U-05 Engineer lays Concrete. 00657_ Lesser Abomination absorbs Wheel, Aluminum Leg. 00657_ U-05 Engineer lays Concrete. 00657_ Door malfunctions. 00658_ U-05 Engineer lays Concrete. 00659_ Lesser Abomination absorbs Assault Rifle, Aluminum Leg. 00659_ U-05 Engineer lays Concrete. 00660_ Lesser Abomination absorbs Aluminum Leg. 00661_ U-05 Engineer lays Concrete. 00661_ M-13 Machinist fits Backup Power I on K-01 Serf. 00661_ K-01 Serf destroyed. 00662_ U-05 Engineer lays Concrete. 00663_ Lesser Abomination absorbs Sml. Matter Pod. 00663_ U-05 Engineer lays Concrete. 00666_ G-34 Mercenary destroyed. 00667_ Lesser Abomination absorbs Heat Sink. Map ----- +----------------------------------------------------+ | ?????????????????????????????????????????????????? | | ?????????????????????????????????????????????????? | | ?????????????????????????????????????????????????? | | ?????????????????????????????????????????????????? | | ?????????????????????????????????????????????????? | | ?????????????????????????????????????????????????? | | ?????????????????????????????????????????????????? | | ?????????????????????????????????????????????????? | | ???????????????????????#???#?????????????????????? | | ??????????????????????? ??? ?????????????"???????? | | ??????????????????????? ??? ??????????""" ??????? | | ??????????????????????? """ #?????????? ??????? | | ??????????????????????? """ #?????????? ?????? | | ???????????????????????? +??????"???"" ???? | | ???????????????????????? #??????" """ ??? | | ???????????????????????? #?????"" """ ??? | | ???????????????????????? ===?????? ??? | | ?????????????#?????????? ==[????? ??? | | ?????????????#+????????? ==???????"" ??? | | ?????? ####### ########? ???????"" ! ### | | ?????? /? ????????"" | | ?????? #?#/#?????? | | ????? ###%###???? | | ??????? =%% #####???######## | | ??????? k % + ???????????# | | ???????? u % % @ #??????????????# | | ????????????????####% A #??????????????# | | ???????????????????# % #??????????????# ! | | ???????????????????# a #??????????????# | | ???????????????????#% #??????????????##### | | ???????????????????# % #??????????????????# | | ???????????????????# #??????????????????# | | ??????????????????## #### #??????????????????# | | ??????????????????# """# #??????????????????# | | ??????????????????# m "# #???????????######?# | | ??????????????????# % "# #???????????# """ =# % | | ??????????????????# < ""# #???????????# "T" # | | ??????????????????# |"# #?######????# + | | ??????????????????#|% "# ### ##???# # | | ??????????????????# """# ## #???# = # | | ??????############## #### ## !#???# = ?# | | ??????# # ## #??????######?# | | ??????# + #?????????????# | | ??????# # #?????????????# | | ??????# # ############### | | ??????# # % | | ??????########+##### % % | | ?????????????# #???#% | | ?????????????# ##### """ """ """ "" | | ?????????????# %| """ """ """ """ | +----------------------------------------------------+ Best States ------------- Heat Dissipation 25 Energy Generation 10 Energy Capacity 250 Matter Stores 300 Matter Capacity 300 Sight Range 18 Terrain Scan Density 10 Evasion (%) 40 Recoil Reduction 2 Item Schematics ----------------- None Robot Schematics ------------------ None Fabricated ------------ Nothing Alien Tech Used ----------------- None Achievements -------------- None Challenges ------------ None Game ------ Seed ActuatorHugeBoosters Manual? 0 Play Time 00:06:19 Cumulative 12.0 hours Start 2019.10.31 @ 15:44:17 End 2019.10.31 @ 15:50:24 Sessions 1 Manual Loads 0 Difficulty Rogue Special Mode Halloween2019/Abominations Game No. 49 Rogue 49 Adventurer 0 Explorer 3 Win Type - Total 0 Types 0/0/0/0/0/0/0 Lore% 15 Gallery% 14 Achievement% 12 Wizard Run 0 Options --------- ASCII 0 Keyboard 0 Movement Arrows Keybinds 0 Fullscreen 0 Font 14/Terminus Map View 76x50 Tactical HUD 1 Map Filters NONE Filters NONE Steam 1 RUN: 87c83c27-fed3-4f44-afb2-b5bb76e2a986